fUST/lending_fUST_20250220
["ID","MTS","AMOUNT","RATE_DAILY","PERIOD"]
[353743679,1740004242670,-611.51,0.00013863,2]
[353743680,1740004242679,-500.0,0.00013863,2]
[353743681,1740004242688,-500.0,0.00013863,2]
[353743682,1740004242697,-510.56,0.00013863,2]
[353743683,1740004242707,-500.0,0.00013863,2]
[353743684,1740004242716,-500.0,0.00013863,2]
[353743685,1740004242727,-793.99,0.00013863,2]
[353743686,1740004242737,-641.61,0.00013863,2]
[353743687,1740004242747,-500.0,0.00013863,2]
[353743688,1740004242757,-1007.9,0.00013863,2]
[353743689,1740004242766,-1012.31,0.00013863,2]
[353743690,1740004242775,-1753.26,0.00013863,2]
[353743691,1740004242784,-500.0,0.00013863,2]
[353743693,1740004242793,-639.71,0.00013863,2]
[353743694,1740004242803,-500.0,0.00013863,2]
[353743696,1740004242815,-1266.04,0.00013863,2]
[353743697,1740004242824,-602.55,0.00013863,2]
[353743698,1740004242834,-500.0,0.00013863,2]
[353743699,1740004242843,-500.0,0.00013863,2]
[353743700,1740004242854,-500.0,0.00013863,2]
[353743701,1740004242863,-699.93,0.00013863,2]
[353743702,1740004242874,-507.0895533,0.00013863,2]
[353743703,1740004242883,-500.0,0.00013863,2]
[353743704,1740004242894,-500.0,0.00013863,2]
[353743705,1740004242903,-1363.5,0.00013863,2]
[353743706,1740004242912,-500.0,0.00013863,2]
[353743707,1740004242922,-500.0,0.00013863,2]
[353743708,1740004242931,-597.13,0.00013863,2]
[353743709,1740004242940,-518.04248166,0.00013863,2]
[353743710,1740004242949,-4687.57,0.00013863,2]
[353743711,1740004242959,-4927.58,0.00013863,2]
[353743712,1740004242967,-500.0,0.00013863,2]
[353743713,1740004242977,-507.82,0.00013863,2]
[353743714,1740004242986,-1389.2,0.00013863,2]
[353743715,1740004242995,-846.0,0.00013863,2]
[353743716,1740004243004,-198.81133641,0.00013927,2]
[353743717,1740004243014,-500.0,0.00013945,2]
[353743718,1740004243023,-375.94,0.00013945,2]
[353743719,1740004243032,-500.0,0.00013945,2]
[353743720,1740004243041,-500.0,0.00013945,2]
[353743721,1740004243050,-500.0,0.00013945,2]
[353743722,1740004243059,-500.0,0.00013945,2]
[353743723,1740004243068,-500.0,0.00013945,2]
[353743724,1740004243078,-500.0,0.00013945,2]
[353743725,1740004243087,-500.0,0.00013945,2]
[353743726,1740004243096,-500.0,0.00013945,2]
[353743727,1740004243105,-500.0,0.00013945,2]
[353743728,1740004243115,-500.0,0.00013945,2]
[353743729,1740004243124,-344.82,0.00013945,2]
[353743730,1740004243134,-500.0,0.00013945,2]
[353743731,1740004243143,-500.0,0.00013945,2]
[353743732,1740004243152,-500.0,0.00013945,2]
[353743733,1740004243161,-500.0,0.00013945,2]
[353743734,1740004243171,-500.0,0.00013945,2]
[353743735,1740004243180,-500.0,0.00013945,2]
[353743736,1740004243189,-500.0,0.00013945,2]
[353743737,1740004243199,-291.85,0.00013945,2]
[353743738,1740004243208,-500.0,0.00013945,2]
[353743739,1740004243217,-500.0,0.00013945,2]
[353743740,1740004243227,-500.0,0.00013945,2]
[353743741,1740004243236,-1061.25,0.00013945,2]
[353743742,1740004243246,-500.0,0.00013945,2]
[353743743,1740004243255,-391.20026402,0.00013945,2]
[353743744,1740004243264,-551.43,0.00013945,2]
[353743745,1740004243273,-500.0,0.00013945,2]
[353743746,1740004243282,-500.0,0.00013945,2]
[353743747,1740004243291,-500.0,0.00013945,2]
[353743748,1740004243300,-500.0,0.00013945,2]
[353743749,1740004243310,-13702.54,0.00013945,2]
[353743750,1740004243319,-703.15,0.00013945,2]
[353743751,1740004243328,-519.65,0.00013945,2]
[353743752,1740004243337,-500.0,0.00013945,2]
[353743753,1740004243347,-5070.36,0.00013945,2]
[353743754,1740004243356,-611.51,0.00013945,2]
[353743755,1740004243365,-500.0,0.00013945,2]
[353743756,1740004243376,-500.0,0.00013945,2]
[353743757,1740004243386,-510.56,0.00013945,2]
[353743758,1740004243397,-500.0,0.00013945,2]
[353743759,1740004243406,-500.0,0.00013945,2]
[353743760,1740004243415,-793.99,0.00013945,2]
[353743761,1740004243424,-641.61,0.00013945,2]
[353743762,1740004243434,-500.0,0.00013945,2]
[353743763,1740004243443,-1007.9,0.00013945,2]
[353743764,1740004243453,-1012.31,0.00013945,2]
[353743765,1740004243462,-1753.26,0.00013945,2]
[353743766,1740004243471,-500.0,0.00013945,2]
[353743767,1740004243480,-639.71,0.00013945,2]
[353743768,1740004243490,-500.0,0.00013945,2]
[353743769,1740004243500,-1266.04,0.00013945,2]
[353743770,1740004243509,-602.55,0.00013945,2]
[353743771,1740004243519,-500.0,0.00013945,2]
[353743772,1740004243528,-500.0,0.00013945,2]
[353743773,1740004243537,-500.0,0.00013945,2]
[353743774,1740004243546,-699.93,0.00013945,2]
[353743775,1740004243555,-500.0,0.00013945,2]
[353743776,1740004243564,-500.0,0.00013945,2]
[353743777,1740004243573,-1363.5,0.00013945,2]
[353743778,1740004243583,-500.0,0.00013945,2]
[353743779,1740004243592,-500.0,0.00013945,2]
[353743780,1740004243601,-597.13,0.00013945,2]
[353743781,1740004243611,-4687.57,0.00013945,2]
[353743782,1740004243620,-4927.58,0.00013945,2]
[353743783,1740004243629,-500.0,0.00013945,2]
[353743784,1740004243639,-507.82,0.00013945,2]
[353743785,1740004243648,-1389.2,0.00013945,2]
[353743786,1740004243657,-846.0,0.00013945,2]
[353743787,1740004243666,-406.47818565,0.0001399,2]
[353743788,1740004243675,-4096.74829003,0.0001399,2]
[353743789,1740004243684,-1183.40155706,0.00014,2]
[353743790,1740004243694,-612.63821157,0.00014027,2]
[353743791,1740004243703,-500.0,0.00014027,2]
[353743792,1740004243712,-500.0,0.00014027,2]
[353743793,1740004243722,-500.0,0.00014027,2]
[353743794,1740004243731,-500.0,0.00014027,2]
[353743795,1740004243740,-500.0,0.00014027,2]
[353743796,1740004243749,-500.0,0.00014027,2]
[353743797,1740004243758,-500.0,0.00014027,2]
[353743798,1740004243767,-500.0,0.00014027,2]
[353743799,1740004243776,-500.0,0.00014027,2]
[353743800,1740004243786,-500.0,0.00014027,2]
[353743801,1740004243795,-500.0,0.00014027,2]
[353743802,1740004243804,-500.0,0.00014027,2]
[353743803,1740004243817,-500.0,0.00014027,2]
[353743804,1740004243826,-500.0,0.00014027,2]
[353743805,1740004243836,-500.0,0.00014027,2]
[353743806,1740004243844,-500.0,0.00014027,2]
[353743807,1740004243855,-500.0,0.00014027,2]
[353743808,1740004243863,-500.0,0.00014027,2]
[353743809,1740004243873,-500.0,0.00014027,2]
[353743810,1740004243883,-500.0,0.00014027,2]
[353743811,1740004243893,-1061.25,0.00014027,2]
[353743812,1740004243903,-500.0,0.00014027,2]
[353743813,1740004243912,-551.43,0.00014027,2]
[353743814,1740004243921,-500.0,0.00014027,2]
[353743815,1740004243930,-500.0,0.00014027,2]
[353743816,1740004243939,-500.0,0.00014027,2]
[353743817,1740004243948,-13702.54,0.00014027,2]
[353743818,1740004243957,-703.15,0.00014027,2]
[353743819,1740004243967,-519.65,0.00014027,2]
[353743820,1740004243976,-500.0,0.00014027,2]
[353743821,1740004243985,-5070.36,0.00014027,2]
[353743822,1740004243994,-611.51,0.00014027,2]
[353743823,1740004244003,-500.0,0.00014027,2]
[353743824,1740004244012,-500.0,0.00014027,2]
[353743825,1740004244022,-510.56,0.00014027,2]
[353743826,1740004244031,-500.0,0.00014027,2]
[353743827,1740004244040,-500.0,0.00014027,2]
[353743828,1740004244049,-793.99,0.00014027,2]
[353743829,1740004244058,-641.61,0.00014027,2]
[353743830,1740004244067,-500.0,0.00014027,2]
[353743831,1740004244076,-1007.9,0.00014027,2]
[353743832,1740004244085,-1012.31,0.00014027,2]
[353743833,1740004244094,-1753.26,0.00014027,2]
[353743834,1740004244103,-500.0,0.00014027,2]
[353743835,1740004244112,-639.71,0.00014027,2]
[353743836,1740004244121,-500.0,0.00014027,2]
[353743837,1740004244130,-1266.04,0.00014027,2]
[353743838,1740004244139,-602.55,0.00014027,2]
[353743839,1740004244148,-500.0,0.00014027,2]
[353743840,1740004244158,-500.0,0.00014027,2]
[353743841,1740004244167,-500.0,0.00014027,2]
[353743842,1740004244176,-699.93,0.00014027,2]
[353743843,1740004244185,-500.0,0.00014027,2]
[353743844,1740004244194,-500.0,0.00014027,2]
[353743845,1740004244204,-1363.5,0.00014027,2]
[353743846,1740004244213,-500.0,0.00014027,2]
[353743847,1740004244223,-282.31763371,0.00014027,2]
[353743848,1740004244232,-597.13,0.00014027,2]
[353743849,1740004244242,-4687.57,0.00014027,2]
[353743850,1740004244251,-4927.58,0.00014027,2]
[353743851,1740004244261,-500.0,0.00014027,2]
[353743852,1740004244270,-507.82,0.00014027,2]
[353743853,1740004244279,-1389.2,0.00014027,2]
[353743854,1740004244289,-846.0,0.00014027,2]
[353743855,1740004244298,-168.39,0.00014109,2]
[353743856,1740004244308,-168.39,0.00014109,2]
[353743857,1740004244317,-168.39,0.00014109,2]
[353743858,1740004244327,-168.39,0.00014109,2]
[353743859,1740004244336,-168.39,0.00014109,2]
[353743860,1740004244345,-168.39335212,0.00014109,2]
[353743861,1740004244355,-500.0,0.00014109,2]
[353743862,1740004244364,-500.0,0.00014109,2]
[353743863,1740004244373,-500.0,0.00014109,2]
[353743864,1740004244383,-500.0,0.00014109,2]
[353743865,1740004244392,-500.0,0.00014109,2]
[353743866,1740004244401,-500.0,0.00014109,2]
[353743867,1740004244410,-500.0,0.00014109,2]
[353743868,1740004244419,-500.0,0.00014109,2]
[353743869,1740004244429,-500.0,0.00014109,2]
[353743870,1740004244438,-500.0,0.00014109,2]
[353743871,1740004244448,-500.0,0.00014109,2]
[353743872,1740004244457,-500.0,0.00014109,2]
[353743873,1740004244466,-500.0,0.00014109,2]
[353743874,1740004244475,-500.0,0.00014109,2]
[353743875,1740004244484,-500.0,0.00014109,2]
[353743876,1740004244493,-500.0,0.00014109,2]
[353743877,1740004244503,-500.0,0.00014109,2]
[353743878,1740004244512,-500.0,0.00014109,2]
[353743879,1740004244521,-500.0,0.00014109,2]
[353743880,1740004244530,-500.0,0.00014109,2]
[353743881,1740004244539,-1061.25,0.00014109,2]
[353743882,1740004244548,-500.0,0.00014109,2]
[353743883,1740004244557,-551.43,0.00014109,2]
[353743884,1740004244566,-500.0,0.00014109,2]
[353743885,1740004244575,-500.0,0.00014109,2]
[353743886,1740004244584,-500.0,0.00014109,2]
[353743887,1740004244593,-13702.54,0.00014109,2]
[353743888,1740004244602,-703.15,0.00014109,2]
[353743889,1740004244611,-519.65,0.00014109,2]
[353743890,1740004244621,-211.25,0.00014109,2]
[353743891,1740004244631,-5070.36,0.00014109,2]
[353743892,1740004244639,-611.51,0.00014109,2]
[353743893,1740004244649,-500.0,0.00014109,2]
[353743894,1740004244659,-500.0,0.00014109,2]
[353743895,1740004244668,-510.56,0.00014109,2]
[353743896,1740004244677,-500.0,0.00014109,2]
[353743897,1740004244686,-500.0,0.00014109,2]
[353743898,1740004244696,-793.99,0.00014109,2]
[353743899,1740004244705,-641.61,0.00014109,2]
[353743900,1740004244715,-500.0,0.00014109,2]
[353743901,1740004244724,-1007.9,0.00014109,2]
[353743902,1740004244733,-1012.31,0.00014109,2]
[353743903,1740004244743,-1753.26,0.00014109,2]
[353743904,1740004244754,-500.0,0.00014109,2]
[353743905,1740004244764,-639.71,0.00014109,2]
[353743906,1740004244775,-500.0,0.00014109,2]
[353743907,1740004244784,-1266.04,0.00014109,2]
[353743908,1740004244794,-602.55,0.00014109,2]
[353743909,1740004244803,-500.0,0.00014109,2]
[353743910,1740004244815,-500.0,0.00014109,2]
[353743911,1740004244825,-500.0,0.00014109,2]
[353743912,1740004244834,-699.93,0.00014109,2]
[353743913,1740004244843,-500.0,0.00014109,2]
[353743914,1740004244852,-500.0,0.00014109,2]
[353743915,1740004244976,-1363.5,0.00014109,2]
[353743916,1740004244987,-500.0,0.00014109,2]
[353743917,1740004244997,-597.13,0.00014109,2]
[353743918,1740004245010,-4687.57,0.00014109,2]
[353743919,1740004245022,-4927.58,0.00014109,2]
[353743920,1740004245031,-500.0,0.00014109,2]
[353743921,1740004245040,-507.82,0.00014109,2]
[353743922,1740004245049,-1389.2,0.00014109,2]
[353743923,1740004245059,-846.0,0.00014109,2]
[353743924,1740004245068,-600.0,0.00014164,2]
[353743925,1740004245078,-500.0,0.00014191,2]
[353743926,1740004245087,-500.0,0.00014191,2]
[353743927,1740004245097,-500.0,0.00014191,2]
[353743928,1740004245106,-500.0,0.00014191,2]
[353743929,1740004245115,-500.0,0.00014191,2]
[353743930,1740004245125,-500.0,0.00014191,2]
[353743931,1740004245135,-500.0,0.00014191,2]
[353743932,1740004245144,-500.0,0.00014191,2]
[353743933,1740004245153,-500.0,0.00014191,2]
[353743934,1740004245163,-500.0,0.00014191,2]
[353743935,1740004245172,-500.0,0.00014191,2]
[353743936,1740004245181,-500.0,0.00014191,2]
[353743937,1740004245191,-500.0,0.00014191,2]
[353743938,1740004245201,-500.0,0.00014191,2]
[353743939,1740004245210,-500.0,0.00014191,2]
[353743940,1740004245219,-500.0,0.00014191,2]
[353743941,1740004245228,-500.0,0.00014191,2]
[353743942,1740004245237,-500.0,0.00014191,2]
[353743943,1740004245246,-500.0,0.00014191,2]
[353743944,1740004245256,-500.0,0.00014191,2]
[353743945,1740004245265,-1061.25,0.00014191,2]
[353743946,1740004245276,-500.0,0.00014191,2]
[353743947,1740004245286,-551.43,0.00014191,2]
[353743948,1740004245295,-500.0,0.00014191,2]
[353743950,1740004245304,-500.0,0.00014191,2]
[353743952,1740004245313,-500.0,0.00014191,2]
[353743953,1740004245323,-13702.54,0.00014191,2]
[353743954,1740004245332,-703.15,0.00014191,2]
[353743955,1740004245341,-519.65,0.00014191,2]
[353743956,1740004245350,-5070.36,0.00014191,2]
[353743957,1740004245361,-611.51,0.00014191,2]
[353743958,1740004245371,-500.0,0.00014191,2]
[353743959,1740004245381,-500.0,0.00014191,2]
[353743960,1740004245390,-510.56,0.00014191,2]
[353743961,1740004245400,-500.0,0.00014191,2]
[353743963,1740004245410,-500.0,0.00014191,2]
[353743965,1740004245420,-793.99,0.00014191,2]
[353743966,1740004245429,-641.61,0.00014191,2]
[353743967,1740004245438,-1007.9,0.00014191,2]
[353743969,1740004245448,-1012.31,0.00014191,2]
[353743971,1740004245457,-1753.26,0.00014191,2]
[353743972,1740004245465,-500.0,0.00014191,2]
[353743973,1740004245474,-639.71,0.00014191,2]
[353743974,1740004245484,-500.0,0.00014191,2]
[353743975,1740004245493,-1266.04,0.00014191,2]
[353743976,1740004245502,-602.55,0.00014191,2]
[353743977,1740004245511,-405.11,0.00014191,2]
[353743978,1740004245520,-365.34,0.00014191,2]
[353743979,1740004245528,-699.93,0.00014191,2]
[353743981,1740004245538,-500.0,0.00014191,2]
[353743982,1740004245547,-500.0,0.00014191,2]
[353743983,1740004245556,-1363.5,0.00014191,2]
[353743984,1740004245566,-500.0,0.00014191,2]
[353743985,1740004245575,-597.13,0.00014191,2]
[353743986,1740004245585,-4687.57,0.00014191,2]
[353743987,1740004245594,-4927.58,0.00014191,2]
[353743988,1740004245603,-500.0,0.00014191,2]
[353743989,1740004245613,-507.82,0.00014191,2]
[353743990,1740004245623,-1389.2,0.00014191,2]
[353743991,1740004245632,-846.0,0.00014191,2]
[353743992,1740004245641,-1000.0,0.00014221,2]
[353743993,1740004245651,-500.0,0.00014247,2]
[353743994,1740004245661,-500.0,0.00014273,2]
[353743995,1740004245671,-500.0,0.00014273,2]
[353743996,1740004245680,-500.0,0.00014273,2]
[353743997,1740004245690,-500.0,0.00014273,2]
[353743998,1740004245702,-500.0,0.00014273,2]
[353743999,1740004245711,-500.0,0.00014273,2]
[353744000,1740004245722,-500.0,0.00014273,2]
[353744001,1740004245730,-396.73717615,0.00014273,2]
[353744002,1740004245741,-500.0,0.00014273,2]
[353744004,1740004245751,-500.0,0.00014273,2]
[353744005,1740004245760,-500.0,0.00014273,2]
[353744006,1740004245770,-500.0,0.00014273,2]
[353744007,1740004245780,-404.86,0.00014273,2]
[353744008,1740004245789,-500.0,0.00014273,2]
[353744009,1740004245798,-500.0,0.00014273,2]
[353744010,1740004245808,-500.0,0.00014273,2]
[353744011,1740004245819,-500.0,0.00014273,2]
[353744012,1740004245829,-500.0,0.00014273,2]
[353744013,1740004245838,-500.0,0.00014273,2]
[353744014,1740004245847,-500.0,0.00014273,2]
[353744015,1740004245858,-1061.25,0.00014273,2]
[353744016,1740004245867,-500.0,0.00014273,2]
[353744017,1740004245877,-551.43,0.00014273,2]
[353744018,1740004245889,-500.0,0.00014273,2]
[353744019,1740004245899,-500.0,0.00014273,2]
[353744020,1740004245908,-500.0,0.00014273,2]
[353744021,1740004245917,-13702.54,0.00014273,2]
[353744022,1740004245926,-703.15,0.00014273,2]
[353744023,1740004245935,-519.65,0.00014273,2]
[353744024,1740004245946,-5070.36,0.00014273,2]
[353744025,1740004245956,-611.51,0.00014273,2]
[353744026,1740004245965,-500.0,0.00014273,2]
[353744027,1740004245975,-598.75986233,0.00014273,2]
[353744028,1740004245985,-510.56,0.00014273,2]
[353744029,1740004245993,-500.0,0.00014273,2]
[353744030,1740004246003,-500.0,0.00014273,2]
[353744031,1740004246012,-793.99,0.00014273,2]
[353744032,1740004246023,-641.61,0.00014273,2]
[353744033,1740004246032,-1007.9,0.00014273,2]
[353744034,1740004246042,-1012.31,0.00014273,2]
[353744035,1740004246051,-1753.26,0.00014273,2]
[353744036,1740004246061,-500.0,0.00014273,2]
[353744037,1740004246070,-639.71,0.00014273,2]
[353744038,1740004246079,-500.0,0.00014273,2]
[353744039,1740004246089,-1266.04,0.00014273,2]
[353744040,1740004246098,-602.55,0.00014273,2]
[353744041,1740004246108,-699.93,0.00014273,2]
[353744042,1740004246118,-319.25468152,0.00014273,2]
[353744043,1740004246128,-500.0,0.00014273,2]
[353744044,1740004246138,-1363.5,0.00014273,2]
[353744045,1740004246149,-500.0,0.00014273,2]
[353744046,1740004246158,-597.13,0.00014273,2]
[353744047,1740004246168,-4687.57,0.00014273,2]
[353744048,1740004246177,-4927.58,0.00014273,2]
[353744049,1740004246187,-500.0,0.00014273,2]
[353744050,1740004246197,-507.82,0.00014273,2]
[353744051,1740004246206,-1389.2,0.00014273,2]
[353744052,1740004246216,-846.0,0.00014273,2]
[353744053,1740004246226,-500.0,0.00014356,2]
[353744054,1740004246235,-500.0,0.00014356,2]
[353744055,1740004246245,-500.0,0.00014356,2]
[353744056,1740004246255,-500.0,0.00014356,2]
[353744057,1740004246264,-500.0,0.00014356,2]
[353744058,1740004246274,-500.0,0.00014356,2]
[353744059,1740004246284,-500.0,0.00014356,2]
[353744060,1740004246294,-500.0,0.00014356,2]
[353744061,1740004246304,-500.0,0.00014356,2]
[353744062,1740004246314,-500.0,0.00014356,2]
[353744063,1740004246323,-500.0,0.00014356,2]
[353744064,1740004246332,-500.0,0.00014356,2]
[353744065,1740004246342,-500.0,0.00014356,2]
[353744066,1740004246351,-500.0,0.00014356,2]
[353744067,1740004246360,-500.0,0.00014356,2]
[353744068,1740004246370,-500.0,0.00014356,2]
[353744069,1740004246380,-500.0,0.00014356,2]
[353744070,1740004246389,-500.0,0.00014356,2]
[353744071,1740004246399,-1061.25,0.00014356,2]
[353744072,1740004246408,-500.0,0.00014356,2]
[353744073,1740004246418,-551.43,0.00014356,2]
[353744074,1740004246428,-500.0,0.00014356,2]
[353744075,1740004246437,-500.0,0.00014356,2]
[353744076,1740004246446,-500.0,0.00014356,2]
[353744077,1740004246456,-13702.54,0.00014356,2]
[353744078,1740004246465,-703.15,0.00014356,2]
[353744079,1740004246474,-519.65,0.00014356,2]
[353744080,1740004246483,-5070.36,0.00014356,2]
[353744081,1740004246493,-611.51,0.00014356,2]
[353744082,1740004246502,-500.0,0.00014356,2]
[353744083,1740004246511,-510.56,0.00014356,2]
[353744084,1740004246520,-191.39475227,0.00014356,2]
[353744085,1740004246529,-500.0,0.00014356,2]
[353744086,1740004246539,-793.99,0.00014356,2]
[353744087,1740004246548,-641.61,0.00014356,2]
[353744088,1740004246558,-1007.9,0.00014356,2]
[353744089,1740004246569,-1012.31,0.00014356,2]
[353744090,1740004246578,-1753.26,0.00014356,2]
[353744091,1740004246588,-500.0,0.00014356,2]
[353744092,1740004246597,-639.71,0.00014356,2]
[353744093,1740004246607,-500.0,0.00014356,2]
[353744094,1740004246616,-1266.04,0.00014356,2]
[353744095,1740004246626,-602.55,0.00014356,2]
[353744096,1740004246635,-699.93,0.00014356,2]
[353744097,1740004246645,-500.0,0.00014356,2]
[353744098,1740004246654,-1363.5,0.00014356,2]
[353744099,1740004246663,-500.0,0.00014356,2]
[353744100,1740004246673,-597.13,0.00014356,2]
[353744101,1740004246682,-4687.57,0.00014356,2]
[353744102,1740004246692,-4927.58,0.00014356,2]
[353744103,1740004246701,-500.0,0.00014356,2]
[353744104,1740004246710,-507.82,0.00014356,2]
[353744105,1740004246721,-1389.2,0.00014356,2]
[353744106,1740004246730,-846.0,0.00014356,2]
[353744107,1740004246740,-179.69451932,0.000144,2]
[353744108,1740004246750,-1120.28347369,0.00014406,2]
[353744109,1740004246759,-500.0,0.00014438,2]
[353744110,1740004246768,-500.0,0.00014438,2]
[353744111,1740004246778,-500.0,0.00014438,2]
[353744112,1740004246788,-500.0,0.00014438,2]
[353744113,1740004246797,-500.0,0.00014438,2]
[353744114,1740004246807,-500.0,0.00014438,2]
[353744115,1740004246820,-500.0,0.00014438,2]
[353744116,1740004246829,-179.62191561,0.00014438,2]
[353744117,1740004246838,-500.0,0.00014438,2]
[353744118,1740004246848,-500.0,0.00014438,2]
[353744119,1740004246859,-500.0,0.00014438,2]
[353744120,1740004246869,-500.0,0.00014438,2]
[353744121,1740004246878,-500.0,0.00014438,2]
[353744122,1740004246889,-500.0,0.00014438,2]
[353744123,1740004246899,-500.0,0.00014438,2]
[353744124,1740004246909,-450.5749384,0.00014438,2]
[353744125,1740004246918,-500.0,0.00014438,2]
[353744126,1740004246928,-1061.25,0.00014438,2]
[353744127,1740004246938,-551.43,0.00014438,2]
[353744128,1740004246948,-500.0,0.00014438,2]
[353744129,1740004246958,-500.0,0.00014438,2]
[353744130,1740004246967,-500.0,0.00014438,2]
[353744131,1740004246975,-13702.54,0.00014438,2]
[353744132,1740004246984,-703.15,0.00014438,2]
[353744133,1740004246993,-519.65,0.00014438,2]
[353744134,1740004247003,-5070.36,0.00014438,2]
[353744135,1740004247013,-611.51,0.00014438,2]
[353744136,1740004247023,-500.0,0.00014438,2]
[353744137,1740004247032,-510.56,0.00014438,2]
[353744138,1740004247042,-500.0,0.00014438,2]
[353744139,1740004247052,-793.99,0.00014438,2]
[353744140,1740004247061,-641.61,0.00014438,2]
[353744141,1740004247071,-1007.9,0.00014438,2]
[353744142,1740004247080,-1012.31,0.00014438,2]
[353744143,1740004247090,-1753.26,0.00014438,2]
[353744144,1740004247099,-500.0,0.00014438,2]
[353744145,1740004247108,-639.71,0.00014438,2]
[353744146,1740004247117,-500.0,0.00014438,2]
[353744147,1740004247126,-1266.04,0.00014438,2]
[353744148,1740004247136,-602.55,0.00014438,2]
[353744149,1740004247145,-699.93,0.00014438,2]
[353744150,1740004247154,-500.0,0.00014438,2]
[353744151,1740004247163,-1363.5,0.00014438,2]
[353744152,1740004247173,-500.0,0.00014438,2]
[353744153,1740004247182,-597.13,0.00014438,2]
[353744154,1740004247192,-4687.57,0.00014438,2]
[353744155,1740004247202,-4927.58,0.00014438,2]
[353744156,1740004247211,-500.0,0.00014438,2]
[353744157,1740004247221,-507.82,0.00014438,2]
[353744158,1740004247230,-1389.2,0.00014438,2]
[353744159,1740004247240,-846.0,0.00014438,2]
[353744160,1740004247249,-587.0,0.0001446,2]
[353744161,1740004247259,-149011.57992836,0.000145,2]
[353744162,1740004247368,-1069.03893575,0.000145,2]
[353744163,1740004247381,-3592.17408006,0.000145,2]
[353744164,1740004247393,-64348.33208471,0.000145,2]
[353744165,1740004247520,-619.0,0.00013698,2]
[353744166,1740004247530,-1216.81,0.00013698,2]
[353744167,1740004247539,-619.0,0.0001378,2]
[353744168,1740004247548,-1216.81,0.0001378,2]
[353744169,1740004247557,-619.0,0.00013863,2]
[353744170,1740004247567,-1216.81,0.00013863,2]
[353744171,1740004247576,-619.0,0.00013945,2]
[353744172,1740004247585,-1216.81,0.00013945,2]
[353744173,1740004247595,-619.0,0.00014027,2]
[353744174,1740004247604,-1216.81,0.00014027,2]
[353744175,1740004247613,-6370.91704921,0.000145,2]
[353744176,1740004247623,-7438.69753278,0.00014506,2]
[353744177,1740004247633,-500.0,0.0001452,2]
[353744178,1740004247642,-500.0,0.0001452,2]
[353744179,1740004247652,-618.31,0.0001452,2]
[353744180,1740004247662,-500.0,0.0001452,2]
[353744181,1740004247672,-309.17377795,0.0001452,2]
[353744182,1740004247681,-500.0,0.0001452,2]
[353744183,1740004247691,-500.0,0.0001452,2]
[353744184,1740004247701,-500.0,0.0001452,2]
[353744185,1740004247711,-500.0,0.0001452,2]
[353744186,1740004247720,-500.0,0.0001452,2]
[353744187,1740004247730,-500.0,0.0001452,2]
[353744188,1740004247861,-500.0,0.0001452,2]